Workbook

Sheet INPUT
C1: Lorraine Perkins 267-398-6640 (cell) | P1: =C24*C26+C24 -> 18870 | Q1: 0.01666 | R1: 0.0545
C2: lperkins@thebeneficial.com | P2: $1.00 Buyout
B3: Customer Information
B4: Business Name | O4: NUMBER OF YEARS | P4: 3 | Q4: 4 | R4: 5 | S4: 6 | T4: 2
B5: Street Address | O5: $0 - $9,999 | P5: 0.0625 | Q5: 0.0625 | R5: 0.0625 | S5: 0.0625 | T5: 0.0625
B6: Address | O6: $10,000 - $24,999 | P6: 0.0529 | Q6: 0.0529 | R6: 0.0529 | S6: 0.0545 | T6: 0.0529
B7: City, State Zip | O7: $25,000- $99.999 | P7: 0.0529 | Q7: 0.0529 | R7: 0.0529 | S7: 0.0545 | T7: 0.0529
B8: Contact Name | O8: $100,000 - $249,999 | P8: 0.0529 | Q8: 0.0529 | R8: 0.0529 | S8: 0.0545 | T8: 0.0529
B9: Phone Number
B10: Email Address or Fax | O10: Over $250,000 | P10: Call for Quote | Q10: Call for Quote | R10: Call For Quote | S10: Call for Quote | T10: Call for Quote
B12: Vendor Information
B13: Company Name | C13: Diagnostic Imaging Systems
B14: Sales Rep Name
B15: Phone Number
B16: Email Address or Fax
B18: EQUIPMENT DETAILS
A19: (2 | C19: DR System
P20: 90-Deferred $1.00 Buyout
B21: Equipment Description | P21: 3 | Q21: 4 | R21: 5 | S21: 6 | T21: 2
O22: $0 - $9,999 | P22: 0.065 | Q22: 0.065 | R22: 0.065 | S22: 0.065 | T22: 0.065
B24: Total Cost | C24: 18500 | O24: $10,000 - $24,999 | P24: 0.0545 | Q24: 0.0545 | R24: 0.0545 | S24: 0.0545 | T24: 0.0545
B26: PTS: | C26: 0.02 | O26: $25,000 - $99,999 | P26: 0.0545 | Q26: 0.0545 | R26: 0.0545 | S26: 0.0545 | T26: 0.0545
O28: $100,000 - $249,999 | P28: 0.0545 | Q28: 0.0545 | R28: 0.0545 | S28: 0.0545 | T28: 0.0545
O30: Over $250,000 | P30: Call for Quote | Q30: Call for Quote | R30: Call for Quote | S30: Call for Quote
Q32: Equipment Cost = | S32: =C24 -> 18500
Q34: Commission = | S34: =C26 -> 0.02
Q36: Equipment Cost & Commission = | S36: =($S$32)*(1+$S34) -> 18870
P37: FALSE
P38: TRUE | Q38: 0
Q39: 0.005
P40: TRUE | Q40: 0.01
P41: TRUE | Q41: 0.015
Q42: 0.02
Q43: 0.025
P44: TRUE | Q44: 0.03
P45: TRUE
P46: TRUE
P48: FALSE
U61: 84 Mos.
U62: 0.02253
U64: 0.02253
U65: 0.02253
U66: Call for Quote

Sheet QUOTE
C1: CONTACT: Lorraine Perkins
C2: 267-398-6640 (cell)
C3: =TODAY() -> 2018-02-21 | D3: lperkins@thebeneficial.com
A4: A Quote For: | B4: =INPUT!C4 -> 0 | C4: After 12 Timely Fully Amortized Payments, and provided your account is in good standing, you can payoff this lease with NO Pre-Payment Penalty!! We stand by our FULLY DISCOUNTED, penalty free payoff.
A5: Address: | B5: =INPUT!C5 -> 0
A6: Address: | B6: =INPUT!C6 -> 0
A7: Address: | B7: =INPUT!C7 -> 0
A8: Contact | B8: =INPUT!C8 -> 0 | C8: Buyout is $1.00 at end of Term, No payment due in Advance
A9: Phone: | B9: =INPUT!C9 -> 0 | C9: Standard Options: 1st Payment due 30 days from start of lease
A10: Email/Fax: | B10: =INPUT!C10 -> 0 | C10: 72 Mos. | D10: 60 Mos. | E10: 48 Mos. | F10: 36 Mos.
C11: =INPUT!P1*INPUT!Q1 -> 314.3742 | D11: =IF(INPUT!P44=TRUE,IF(INPUT!P41=TRUE,IF(INPUT!S36<10000,PMT(INPUT!R5/12,INPUT!R4*12,-INPUT!S36,1,0),IF(INPUT!S36<25000,PMT(INPUT!R6/12,INPUT!R4*12,-INPUT!S36,1,0),IF(INPUT!S36<100000,PMT(INPUT!R7/12,INPUT!R4*12,-INPUT!S36,1,0),IF(INPUT!S36<250000,PMT(INPUT!R8/12,INPUT!R4*12,-INPUT!S36,1,0),"Call for Quote")))))) -> 358.5981228 | E11: =IF(INPUT!P44=TRUE,IF(INPUT!P41=TRUE,IF(INPUT!S36<10000,PMT(INPUT!Q5/12,INPUT!Q4*12,-INPUT!S36,1,0),IF(INPUT!S36<25000,PMT(INPUT!Q6/12,INPUT!Q4*12,-INPUT!S36,1,0),IF(INPUT!S36<100000,PMT(INPUT!Q7/12,INPUT!Q4*12,-INPUT!S36,1,0),IF(INPUT!S36<250000,PMT(INPUT!Q8/12,INPUT!Q4*12,-INPUT!S36,1,0),"Call for Quote")))))) -> 437.0272735 | F11: =IF(INPUT!P41=TRUE,IF(INPUT!S36<10000,PMT(INPUT!P5/12,INPUT!P4*12,-INPUT!S36,1,0),IF(INPUT!S36<25000,PMT(INPUT!P6/12,INPUT!P4*12,-INPUT!S36,1,0),IF(INPUT!S36<100000,PMT(INPUT!P7/12,INPUT!P4*12,-INPUT!S36,1,0),IF(INPUT!S36<250000,PMT(INPUT!P8/12,INPUT!P4*12,-INPUT!S36,1,0),"Call for Quote"))))) -> 567.9853511
A12: Vendor: | B12: =INPUT!C13 -> Diagnostic Imaging Systems | C12: 90 Day Deferred Options: 3 @ $0.00, followed by
A13: Sales Rep: | B13: =INPUT!C14 -> 0 | C13: 60 Mos. | D13: 48 Mos. | E13: 36 Mos. | F13: 24 Mos.
A14: Phone: | B14: =INPUT!C15 -> 0 | C14: =IF(INPUT!P41=TRUE,IF(INPUT!S36<10000,PMT(INPUT!R22/12,INPUT!R21*12,FV(INPUT!R22/12,2,0,INPUT!S36,1)),IF(INPUT!S36<25000,PMT(INPUT!R24/12,INPUT!R21*12,FV(INPUT!R24/12,2,0,INPUT!S36,1)),IF(INPUT!S36<100000,PMT(INPUT!R26/12,INPUT!R21*12,FV(INPUT!R26/12,2,0,INPUT!S36,1)),IF(INPUT!S36<250000,PMT(INPUT!R28/12,INPUT!R21*12,FV(INPUT!R28/12,2,0,INPUT!S36,1)),"Call for Quote"))))) -> 363.2810597 | D14: =IF(INPUT!P41=TRUE,IF(INPUT!S36<10000,PMT(INPUT!Q22/12,INPUT!Q21*12,FV(INPUT!Q22/12,2,0,INPUT!S36,1)),IF(INPUT!S36<25000,PMT(INPUT!Q24/12,INPUT!Q21*12,FV(INPUT!Q24/12,2,0,INPUT!S36,1)),IF(INPUT!S36<100000,PMT(INPUT!Q26/12,INPUT!Q21*12,FV(INPUT!Q26/12,2,0,INPUT!S36,1)),IF(INPUT!S36<250000,PMT(INPUT!Q28/12,INPUT!Q21*12,FV(INPUT!Q28/12,2,0,INPUT!S36,1)),"Call for Quote"))))) -> 442.4111866 | E14: =IF(INPUT!P41=TRUE,IF(INPUT!S36<10000,PMT(INPUT!P22/12,INPUT!P21*12,FV(INPUT!P22/12,2,0,INPUT!S36,1)),IF(INPUT!S36<25000,PMT(INPUT!P24/12,INPUT!P21*12,FV(INPUT!P24/12,2,0,INPUT!S36,1)),IF(INPUT!S36<100000,PMT(INPUT!P26/12,INPUT!P21*12,FV(INPUT!P26/12,2,0,INPUT!S36,1)),IF(INPUT!S36<250000,PMT(INPUT!P28/12,INPUT!P21*12,FV(INPUT!P28/12,2,0,INPUT!S36,1)),"Call for Quote"))))) -> 574.5547401 | F14: =IF(INPUT!P41=TRUE,IF(INPUT!S36<10000,PMT(INPUT!T22/12,INPUT!T21*12,FV(INPUT!T22/12,2,0,INPUT!S36,1)),IF(INPUT!S36<25000,PMT(INPUT!T24/12,INPUT!T21*12,FV(INPUT!T24/12,2,0,INPUT!S36,1)),IF(INPUT!S36<100000,PMT(INPUT!T26/12,INPUT!T21*12,FV(INPUT!T26/12,2,0,INPUT!S36,1)),IF(INPUT!S36<250000,PMT(INPUT!T28/12,INPUT!T21*12,FV(INPUT!T28/12,2,0,INPUT!S36,1)),"Call for Quote"))))) -> 839.2326677
A15: Email/Fax: | B15: =INPUT!C16 ->  | C15: Business Builder: 3 months @ $0.00, followed by
A16: Finance Amt: | B16: =INPUT!C24 -> 18500 | C16: 9 Mos. | D16: Followed By | E16: 48 Mos. | F16: OR 36 Mos.
A17: Equipment: | B17: =INPUT!C19 -> DR System | C17: =INPUT!C24*1% -> 185 | D17: (circle one) | E17: =INPUT!C24*0.023322 -> 431.457 | F17: =INPUT!C24*0.030073 -> 556.3505
C19: $129.00 Processing Fee will be billed on 1st Invoice
C20: Payments Do Not Include Applicable Taxes, Freight Charges May Be Added
C21: Please Circle Your Preferred Payment Term Above. Fax back to 855-268-1079
A22: =EOMONTH(C3,0) -> 2018-02-28 | B22: : Quote Expiration Date
A23: Practice Information
A24: Legal Business Name | D24: Business Structure
D25: Corp LLC Partnership Sole Prop
A26: Street Address | D26: Tax ID | F26: Years In Business
A28: City, State, Zip | D28: Contact Name / Title
A30: Phone Number | D30: Email Address for Contact
A32: Principal/Owner Information
A33: Principal Name (1) / Title | D33: Social Security #
A35: Home Street Address | D35: Date of Birth | E35: Percent of Ownership
A37: City, State, Zip | D37: Professional License Number / Date Issued
A39: Principal Name (2) / Title | D39: Social Security #
A41: Home Street Address | D41: Date of Birth | E41: Percent of Ownership
A43: City, State, Zip | D43: Professional License Number / Date Issued
A45: By signing this Credit Application, you authorize Beneficial Equipment Finance Corporation, and/or its assigns, to contact all bank and trade references, run credit and business reports and you authorize all references to release credit card information with respect to this Credit Application and from time to time in connection with the following up on any matters relating to this proposed Lease transaction. If your application for credit is denied, you have a right to a written statement of the specific reasons for denial. To obtain a statement, please contact the Beneficial Equipment Finance Credit department at 1033 S. Hanover Street, Pottstown, PA 19465 or call 877-880-9020 within 60 days from the date you are notified of our decision. We will send you a written statement of reasons for denial within 30 days of receiving your request for the statement. Notice: The federal Equal Credit Opportunity Act prohibits creditors from discriminating against credit applicants on the basis of race, color, religion, national origin, sex, marital status, age (provided the applicant has the capacity to enter into a binding contract); because all or part of the applicant’s income derives from any public assistance program; or because the application has in good faith exercised any right under the Consumer Credit Protection Act. The federal agency that administers compliance with this law concerning this creditor is: FDIC, 980 Harvest Drive, Suite 300, Blue Bell, Pennsylvania, 19422. IMPORTANT INFORMATION ABOUT PROCEDURES FOR OPENING A NEW ACCOUNT To help the government fight the funding of terrorism and money laundering activities, Federal law requires all financial institutions to obtain, verify, and record information that identifies each person who opens an account.
A50: Signature | F50: Date
A51: X
A52: Signature | F52: Date
A53: X
A55: PLEASE FAX APPLICATION TO: (855) 268-1079 or email to LPerkins@thebeneficial.com

Sheet Section 179
C10: Section 179 Deduction and Depreciation
C13: Does Section 179 apply to me?
C15: The provisions of Internal Revenue Code Section 179 allow a sole proprietor, partnership or corporation to fully expense tangible property in the year it is put into use.
C18: How much can I deduct for the 2018 tax year?
C20: If you are the legal owner of the equipment for tax purposes, you may be able to deduct up to $1,000,000 of the value of the equipment you acquire and put into use during 2018.
C22: Why use the Section 179 Deduction?
C24: Using the Section 179 deduction may lower your tax payment to the government, and will Free up cash for other business needs.
C26: What type of Lease Options are available for section 179 Deduction?
C28: In order to take section 179 benefits the customer should select a $1 purchase option, 10% PUT, or an Equipment Finance Agreement (EFA) since these products allow you to keep depreciation benefits. A cash purchase allows the same deduction as well.
B38: Estimated 2018 Tax Benefits:
C40: Financed Amount | G40: =INPUT!C24 -> 18500
C42: Section 179 Deduction | G42: =IF(G40<=500000,G40,IF(G40>500000,500000)) -> 18500
P43: 0.24
C44: Total 1st year Deduction | G44: =G42 -> 18500 | P44: 0.32
P45: 0.35
C46: Tax Bracket | E46: 0.32 | G46: 1st Year Tax Savings | I46: After Tax Cost of Equipment
C48: ="For a Tax Bracket at "&E46*100&"% Your Savings is" -> For a Tax Bracket at 32% Your Savings is | G48: =G44*E46 -> 5920 | I48: =G44-G48 -> 12580
C50: The information listed above is for informational purposes only and should only be used as a guide. Please contact your Tax/ Financial Advisor to see if how this tax code impacts your organization.
